[Event "Polish Youth G18 Championship 2023"]
[Site "Jastrzebia Gora"]
[Date "2023.03.19"]
[Round "9.1"]
[White "Starosta, Martyna"]
[Black "Nowak, Roksana"]
[Result "1-0"]
[ECO "A57"]
[WhiteElo "2138"]
[BlackElo "1816"]
[Annotator "TA"]
[PlyCount "105"]
[EventDate "2023.03.11"]
[EventType "swiss"]
[EventCountry "POL"]
[SourceTitle "playchess.com"]
[Source "ChessBase"]
[SourceQuality "1"]
[TimeControl "40/5400+30:1800+30"]

{[%evp 22,105,61,56,70,35,70,51,107,32,13,30,27,39,28,24,45,18,43,26,65,70,94,97,94,71,114,97,119,107,128,61,54,54,86,93,88,75,71,41,51,35,36,41,36,38,120,122,147,56,56,47,56,73,64,70,78,70,71,61,166,166,166,166,166,166,145,143,159,150,202,202,817,773,1114,632,2469,2407,1970,1806,1589,1614,1139,1028,12244,12138]} 1. d4 {[%emt 0:00:03]} Nf6 {[%emt 0:00:13]} 2. c4 {[%emt 0:00:05]} c5 {[%emt 0:00:06]} 3. d5 {[%emt 0:00:04]} b5 {[%emt 0:00:05]} 4. cxb5 {[%emt 0:00:05]} a6 {[%emt 0:00:14]} 5. e3 {[%emt 0:00:05]} g6 {[%emt 0:01:59]} 6. Nc3 {[%emt 0:00:06]} d6 {[%emt 0:01:26]} 7. a4 {[%emt 0:02:41]} Bg7 {[%emt 0:01:20]} 8. e4 {[%emt 0:00:08]} O-O {[%emt 0:00:52]} 9. Nf3 {[%emt 0:00:11]} axb5 {[%emt 0:04:22]} 10. Bxb5 {[%emt 0:00:16]} Ba6 {[%emt 0:00:22]} 11. Bxa6 {[%emt 0:02:24]} Nxa6 {[%emt 0:00:43]} 12. O-O {[%emt 0:00:31]} Qb6 {[%emt 0:05:30] A57: Benko/Volga Gambit.} 13. Nd2 {[%emt 0:02:22] [#]} Nd7 $146 {[%emt 0:05:50]} ({Predecessor:} 13... Nc7 14. Rb1 Nd7 15. Qc2 Qb4 16. Ra1 Rfb8 17. Ra3 Qa5 18. Nc4 Qa6 19. b3 Ne5 20. Nxe5 Bxe5 {0-1 Krstulovic,A (2313)-Ermeni,A (2183) Zadar op-A 25th 2018 (3)}) 14. Nb5 {[%emt 0:05:15]} Ne5 {[%emt 0:06:30]} ({Black should play} 14... Qb7 $14) 15. Qe2 {[%emt 0:07:04]} (15. f4 $1 $16 {[%cal Rf4e5]} c4+ 16. Kh1) 15... Nc7 $14 {[%emt 0:07:48]} 16. Nxc7 {[%emt 0:05:53]} Qxc7 {[%emt 0:00:04]} 17. f4 {[%emt 0:10:53]} Nd7 {[%emt 0:00:08]} 18. Ra2 {[%emt 0:00:52]} Rfb8 {[%emt 0:04:45][%cal Oc5c4]} 19. b3 {[%emt 0:01:01]} Nb6 {[%emt 0:04:15]} 20. Rc2 {[%emt 0:07:07]} Qb7 {[%emt 0:12:54]} 21. Rf3 {[%emt 0:01:15]} Rc8 {[%emt 0:09:38][%cal Oc5c4]} 22. Nc4 {[%emt 0:02:31]} Nxc4 {[%emt 0:05:04]} 23. Rxc4 {[%emt 0:00:16]} Qa6 {[%emt 0:00:40]} 24. Qc2 {[%emt 0:09:51]} Rab8 {[%emt 0:04:09]} 25. Bd2 {[%emt 0:00:50]} e6 {[%emt 0:03:02]} 26. Bc3 {[%emt 0:05:25] Against Bd4+} (26. dxe6 $1 $16 fxe6 27. Be3) 26... exd5 {[%emt 0:01:18]} 27. exd5 {[%emt 0:00:25]} Qb7 {[%emt 0:02:53]} 28. Bxg7 {[%emt 0:01:36]} Kxg7 {[%emt 0:00:08]} 29. Qd2 {[%emt 0:02:10] Hoping for f5. White is more active.} f5 {[%emt 0:06:16]} 30. Re3 {[%emt 0:04:20]} Re8 {[%emt 0:00:37]} 31. Rcc3 {[%emt 0:05:02]} Qb4 {[%emt 0:01:20]} 32. Rxe8 {[%emt 0:02:16]} Rxe8 {[%emt 0:00:04]} 33. Rd3 {[%emt 0:01:10]} Qxd2 {[%emt 0:02:57]} (33... Qe4 $14) 34. Rxd2 {[%emt 0:00:05][%mdl 4096] Endgame KR-KR} Rb8 {[%emt 0:00:09]} 35. Rd3 {[%emt 0:07:50]} ({Better is} 35. Kf2 $16) 35... Rb4 {[%emt 0:02:01]} 36. g3 {[%emt 0:01:53]} ({But not} 36. a5 Rb5 $11) 36... Kf7 {[%emt 0:00:49]} 37. Kf2 {[%emt 0:02:39]} Ke7 {[%emt 0:02:57]} 38. Ke2 {[%emt 0:00:32]} Kd7 {[%emt 0:01:51]} 39. Kd2 {[%emt 0:03:26]} c4 {[%emt 0:01:53]} 40. bxc4 {[%emt 0:00:00] Black must now prevent Ra3.} Rxc4 {[%emt 0:00:00]} (40... Rxa4 $14 41. Kc3 Ra3+ 42. Kd4 Ra2) 41. Ra3 $18 {[%emt 0:10:37] Threatens to win with a5.} Rc5 {[%emt 0:08:56]} 42. a5 {[%emt 0:01:18][%cal Ba4a5,Ba5a6][%mdl 32] Strongly threatening a6.} Rxd5+ {[%emt 0:02:35]} 43. Ke3 {[%emt 0:00:40] a6 is the strong threat.} Kc7 {[%emt 0:03:43] [#]} 44. a6 {[%emt 0:00:17]} Kb8 {[%emt 0:00:04] [#]} 45. Rd3 $1 {[%emt 0:01:51]} Rc5 {[%emt 0:01:48]} (45... Ra5 $16) 46. Rxd6 {[%emt 0:00:07] And now Rd7 would win.} Rc7 {[%emt 0:01:16] Wards off Rd7} (46... Ra5 47. Rb6+ Kc7) 47. Kd4 {[%emt 0:02:49] White is clearly winning.} Rc2 {[%emt 0:03:31]} 48. Rd8+ {[%emt 0:00:34]} Kc7 {[%emt 0:00:12]} 49. Rh8 {[%emt 0:00:06] a7 would kill now.} Kb6 {[%emt 0:01:39]} 50. Rxh7 {[%emt 0:00:07]} Kxa6 {[%emt 0:00:13]} 51. Rh6 {[%emt 0:00:09]} Kb7 {[%emt 0:01:03]} 52. h4 {[%emt 0:00:09][%cal Bh2h4,Bh4h5][%mdl 32]} Rc6 {[%emt 0:00:19]} 53. h5 {[%emt 0:00:33] Weighted Error Value: White=0.13 (very precise) /Black=0.23 (precise)} 1-0

[Event "Polish Youth G18 Championship 2023"]
[Site "Jastrzebia Gora"]
[Date "2023.03.19"]
[Round "9.2"]
[White "Goraj, Barbara"]
[Black "Kucharska, Helena"]
[Result "1-0"]
[ECO "A28"]
[WhiteElo "2130"]
[BlackElo "1779"]
[Annotator "TA"]
[PlyCount "79"]
[EventDate "2023.03.11"]
[EventType "swiss"]
[EventCountry "POL"]
[SourceTitle "playchess.com"]
[Source "ChessBase"]
[SourceQuality "1"]
[TimeControl "40/5400+30:1800+30"]

{[%evp 9,78,-25,-16,-18,22,21,23,-8,20,0,26,0,-13,-3,0,0,0,0,0,-99,-106,-119,-29,-15,-14,-26,-27,-18,-29,-40,-29,-84,-1,0,0,0,0,8,205,0,0,0,93,82,75,-81,0,0,49,0,85,0,225,221,527,459,535,532,833,762,913,892,2220,2168,29990,29991,29995,29996,29998,29999,29999]} 1. c4 {[%emt 0:00:03]} e5 {[%emt 0:03:25]} 2. Nc3 {[%emt 0:00:10]} Nf6 {[%emt 0:01:08]} 3. Nf3 {[%emt 0:00:09]} Nc6 {[%emt 0:00:29]} 4. d3 {[%emt 0:00:19]} Bb4 {[%emt 0:03:06]} 5. a3 {[%emt 0:06:12]} Bxc3+ {[%emt 0:03:33]} 6. bxc3 {[%emt 0:00:07] A28: English Opening: Four Knights Variation.} h6 {[%emt 0:00:32]} (6... e4 $5 {[%cal Re4f3]} 7. Nd4 O-O $11) 7. e4 {[%emt 0:03:30]} O-O {[%emt 0:02:44] [#]} 8. h3 $146 {[%emt 0:07:14] White has an edge.} ({Predecessor:} 8. g3 d6 9. Bg2 Nh7 10. Nh4 Qf6 11. Rb1 Rb8 12. O-O g5 13. Nf5 Bxf5 14. exf5 Qxf5 {1-0 Pantsulaia,L (2597)-Andriasian,Z (2604) PRO League Stage rapid 2019 (8)}) 8... Rb8 {[%emt 0:03:08]} 9. a4 {[%emt 0:04:44]} a6 {[%emt 0:01:15]} 10. Rb1 {[%emt 0:05:56]} d6 {[%emt 0:02:19]} 11. g4 {[%emt 0:05:52]} Nh7 {[%emt 0:01:48]} 12. Rg1 {[%emt 0:03:38]} Ng5 {[%emt 0:06:37]} 13. Nxg5 {[%emt 0:14:14]} hxg5 {[%emt 0:01:22]} 14. h4 {[%emt 0:01:28]} gxh4 $17 {[%emt 0:02:36]} 15. g5 {[%emt 0:06:45]} g6 {[%emt 0:07:56] Prevents Qh5} (15... Ne7 $1 $17 16. a5 Ng6) 16. Rh1 $11 {[%emt 0:01:47]} f5 {[%emt 0:02:51] With the idea ...f4.} 17. gxf6 {[%emt 0:02:41]} Qxf6 {[%emt 0:01:08][%csl Gf8][%cal Rf6f2]} 18. Be3 {[%emt 0:02:29]} Nd8 {[%emt 0:07:48]} 19. Kd2 {[%emt 0:10:15]} Ne6 {[%emt 0:05:57]} (19... Rf7 {simplifies} 20. Bh3 Bxh3 21. Rxh3 g5) 20. Qg4 {[%emt 0:01:57] [#]} (20. Bh3 $1 $11) 20... Nd4 $1 {[%emt 0:01:20]} 21. Qg2 $1 {[%emt 0:01:11]} Nf3+ {[%emt 0:03:28]} 22. Kc2 {[%emt 0:05:35]} Bd7 {[%emt 0:02:37]} 23. Be2 {[%emt 0:01:14]} h3 $2 {[%emt 0:05:51]} (23... g5 $11 {and Black is okay.}) 24. Qg3 $2 {[%emt 0:04:45]} (24. Rxh3 $1 $18 Nh4 25. Qh1 Bxh3 26. Qxh3) 24... Kg7 {[%emt 0:02:39][%cal Of6h4]} (24... Bxa4+ $2 25. Kb2 $18) 25. a5 {[%emt 0:00:11]} (25. Rxh3 Bxh3 26. Qxh3 Ng5 $17) 25... b5 {[%emt 0:17:08]} (25... Qh4 $11 {keeps the balance.}) 26. axb6 $16 {[%emt 0:03:42]} (26. Rxh3 Bxh3 27. Qxh3 Ng5 28. Qd7+ Qf7 29. Qxf7+ Nxf7 30. cxb5 Rxb5 $15) 26... cxb6 {[%emt 0:00:36][%cal Of6h4]} (26... Ba4+ $2 27. Kc1 Bd7 28. b7 $18 (28. bxc7 Rxb1+ 29. Kxb1 Qh4 $18)) 27. Bxb6 $2 {[%emt 0:00:43] [#]} (27. Rxh3 Bxh3 28. Qxh3 Ng5 29. Qd7+ Rf7 $15) (27. Bf1 $1 $16 {[%cal Rf1h3] and life is bright.}) 27... Ba4+ {[%emt 0:01:10]} ({Better is} 27... a5 $1 $17) 28. Kc1 $11 {[%emt 0:00:45] Chess con chili.} h2 {[%emt 0:04:02]} (28... Bd7 $11) 29. Be3 {[%emt 0:05:12]} (29. Rb4 $14) 29... Rxb1+ {[%emt 0:01:56][%mdl 64] Remove Defender} 30. Kxb1 {[%emt 0:00:01] Strongly threatening Kc1.} Qf7 $2 {[%emt 0:01:29]} (30... Qd8 $1 $11 31. Bxf3 Qa5 32. Bh6+ {[%mdl 64] Decoy} (32. Rxh2 $2 Rb8+) 32... Kxh6 33. Qxh2+ (33. Rxh2+ $2 Kg7 $19) 33... Kg7 34. Qh7+ Kf6 35. Qh4+ (35. Rg1 $2 Rb8+) 35... Kf7 36. Qh7+ Kf6 37. Qh4+ (37. Rg1 $2 Rb8+) 37... Kf7 38. Qh7+ Kf6) 31. Bxf3 $18 {[%emt 0:01:01]} Qb7+ $2 {[%emt 0:03:18] [#]} (31... Qxf3 {is more resistant.} 32. Qxh2 Kf7 33. Qh7+ {[%mdl 64] Deflection} Ke8) 32. Kc1 $1 {[%emt 0:00:06][%cal Og3h2,Bb1c1,Bc1d2,Bd2e1,Be1f1,Bf1g2][%mdl 32] Qxh2! would kill now.} (32. Ka1 {gets mated.} Rb8) 32... Qb3 {[%emt 0:00:29][%csl Ga4][%cal Rb3c2]} 33. Kd2 {[%emt 0:00:45]} (33. Rxh2 $2 Qc2#) 33... Qa2+ {[%emt 0:00:38]} 34. Ke1 {[%emt 0:00:08] And now Kf1 would win.} Rb8 {[%emt 0:00:30]} 35. Kf1 {[%emt 0:00:44]} (35. Qxh2 $2 {leads to mate.} Rb1+) 35... Qb1+ {[%emt 0:00:08]} 36. Kg2 {[%emt 0:00:12]} Qxd3 {[%emt 0:00:21]} 37. Qxh2 {[%emt 0:00:17] White mates.} Kf7 {[%emt 0:00:57]} 38. Qh7+ {[%emt 0:00:13]} Kf6 {[%emt 0:00:10] [#]} 39. Bg5+ $1 {[%emt 0:00:18][%mdl 512]} Ke6 {[%emt 0:00:17]} (39... Kxg5 40. Qh4#) 40. Qe7# {[%emt 0:00:00] Ingenious play by Goraj!   Weighted Error Value: White=0.25 (precise) /Black=0.74} 1-0

[Event "Polish Youth G18 Championship 2023"]
[Site "Jastrzebia Gora"]
[Date "2023.03.19"]
[Round "9.3"]
[White "Hertlein, Irena"]
[Black "Skolska, Emilia"]
[Result "1-0"]
[ECO "C63"]
[WhiteElo "1994"]
[BlackElo "1586"]
[Annotator "TA"]
[PlyCount "135"]
[EventDate "2023.03.11"]
[EventType "swiss"]
[EventCountry "POL"]
[SourceTitle "playchess.com"]
[Source "ChessBase"]
[SourceQuality "1"]
[TimeControl "40/5400+30:1800+30"]

{[%evp 15,135,9,26,13,11,3,58,49,46,51,41,56,53,45,74,40,65,59,96,52,62,51,152,134,147,147,214,213,210,197,227,231,235,230,333,338,393,394,445,208,399,389,375,120,121,63,125,62,116,123,132,136,144,70,73,8,1,0,8,0,0,0,8,8,8,1,1,1,27,-1,-1,-1,-1,-1,27,27,27,27,27,27,27,27,27,27,27,27,27,27,27,27,27,27,27,27,27,27,27,27,159,159,159,159,159,159,159,159,159,159,159,159,160,159,204,179,179,179,179,179,179,179,187,172]} 1. e4 {[%emt 0:00:03]} e5 {[%emt 0:00:06]} 2. Nf3 {[%emt 0:00:05]} Nc6 {[%emt 0:00:07]} 3. Bb5 {[%emt 0:00:08]} f5 {[%emt 0:00:08]} 4. d3 {[%emt 0:00:44]} fxe4 {[%emt 0:00:07]} 5. dxe4 {[%emt 0:00:07]} Nf6 {[%emt 0:00:05]} 6. O-O {[%emt 0:01:17]} Bc5 {[%emt 0:00:07]} 7. Nc3 {[%emt 0:01:59]} d6 {[%emt 0:00:06]} 8. Bg5 {[%emt 0:07:55]} O-O {[%emt 0:00:34]} (8... a6 $5 {[%cal Ra6b5]} 9. Bc4 Qd7 $14) 9. Bc4+ {[%emt 0:06:33] C63: Ruy Lopez: Schliemann/Jaenisch Defence.} Kh8 {[%emt 0:00:09]} 10. Nd5 {[%emt 0:00:18]} Na5 {[%emt 0:03:18]} (10... Bg4 $11) 11. Be2 {[%emt 0:03:05] White is slightly better.} Be6 {[%emt 0:03:08]} 12. c3 {[%emt 0:16:42]} Nc6 {[%emt 0:04:34]} 13. b4 {[%emt 0:01:12]} Bb6 {[%emt 0:00:07]} 14. Bxf6 {[%emt 0:18:33]} gxf6 {[%emt 0:00:19]} 15. Bc4 {[%emt 0:00:12]} Qd7 {[%emt 0:15:00] [#]} 16. Nh4 $146 {[%emt 0:14:44]} ({Predecessor:} 16. a4 a5 17. Nxb6 cxb6 18. Bxe6 Qxe6 19. Qd2 Rg8 20. Nh4 Qh3 21. b5 Qxh4 22. bxc6 Rxg2+ {0-1 Chernov,V (2018)-Artemov,N (1968) Voronezh Region-ch 2011 (2)}) 16... Rae8 {[%emt 0:16:20]} 17. Qh5 {[%emt 0:03:26] [#] Threatens to win with Ng6+.} Qg7 {[%emt 0:04:41] Prevents Ng6+} 18. Nf5 $36 {[%emt 0:06:36][%mdl 2048] White has some pressure.} Qg6 {[%emt 0:03:08]} (18... Bxf5 $14 19. Qxf5 Ne7 20. Nxe7 Rxe7) 19. Qh3 $16 {[%emt 0:02:08] Hoping for a4. Chess con chili. White is more active.} Bxf5 {[%emt 0:14:08]} 20. exf5 {[%emt 0:00:15]} Qg5 {[%emt 0:00:30] [#]} (20... Qg7 $16 21. a4 a5) 21. a4 $1 $18 {[%emt 0:05:24]} a5 {[%emt 0:01:04]} 22. b5 {[%emt 0:05:25]} Ne7 {[%emt 0:02:16]} 23. Nxb6 {[%emt 0:00:15]} cxb6 {[%emt 0:00:11]} 24. Be6 {[%emt 0:00:06]} Rd8 {[%emt 0:02:06]} (24... d5 {keeps fighting.} 25. f4 exf4) 25. Rad1 {[%emt 0:00:30]} Rg8 {[%emt 0:09:59] Black is weak on the light squares} 26. Bxg8 {[%emt 0:01:28]} Kxg8 {[%emt 0:00:37]} 27. Qg3 {[%emt 0:01:46]} (27. f4 $142 exf4 28. Rd4) 27... Nxf5 $2 {[%emt 0:00:35]} (27... Qxg3 28. fxg3 d5) 28. Qxg5+ {[%emt 0:00:01]} fxg5 {[%emt 0:00:07][%mdl 4096] Endgame KRR-KRN} 29. Rd3 $2 {[%emt 0:00:38]} (29. Rfe1 $18 {is the precise move to win.}) 29... Kf7 $16 {[%emt 0:01:28]} 30. Rfd1 {[%emt 0:02:30]} (30. Re1 $16 {Rxe5 is the strong threat.} Kf6 31. Re4) 30... Ke6 {[%emt 0:00:53]} (30... h5 $14) 31. Rh3 {[%emt 0:01:11]} (31. g4 $16 Nh4 32. c4) 31... Rd7 {[%emt 0:02:07]} (31... h6 $14) 32. Rh5 {[%emt 0:00:23]} Kf6 {[%emt 0:00:48]} 33. g4 {[%emt 0:00:47]} Nh4 {[%emt 0:01:13]} 34. Rh6+ {[%emt 0:00:21]} (34. Rd5 $16) 34... Ng6 $14 {[%emt 0:00:37]} 35. Rd3 {[%emt 0:00:39]} ({White should play} 35. c4 $16) 35... Kg7 $11 {[%emt 0:03:23]} 36. Rdh3 {[%emt 0:00:14]} Nh4 {[%emt 0:00:31]} 37. Rh5 {[%emt 0:00:14]} h6 {[%emt 0:00:55]} 38. Kf1 {[%emt 0:00:39]} d5 {[%emt 0:04:43]} 39. R3xh4 {[%emt 0:00:49]} gxh4 {[%emt 0:00:13]} 40. Rxe5 {[%emt 0:00:00] KR-KR} Kf6 {[%emt 0:00:00]} 41. Rf5+ {[%emt 0:03:42]} Kg6 $1 {[%emt 0:04:24]} 42. Rf4 {[%emt 0:11:49]} Rc7 {[%emt 0:03:11]} 43. Rd4 {[%emt 0:01:44]} Rxc3 {[%emt 0:02:47]} 44. Rxd5 {[%emt 0:00:01]} Rc4 {[%emt 0:04:10]} 45. h3 {[%emt 0:01:17] White wants to play Rd6+.} Rxa4 {[%emt 0:03:03]} 46. Rd6+ {[%emt 0:00:06]} Kg5 {[%emt 0:00:11]} 47. Rxb6 {[%emt 0:00:08]} Ra3 {[%emt 0:06:32]} 48. Kg2 {[%emt 0:00:32]} Rb3 {[%emt 0:00:11]} 49. Rxb7 {[%emt 0:00:26] And now b6 would win.} h5 $1 {[%emt 0:00:58]} 50. gxh5 {[%emt 0:03:46]} Kxh5 {[%emt 0:00:23]} 51. b6 {[%emt 0:00:13]} a4 {[%emt 0:01:58]} 52. Ra7 {[%emt 0:00:21]} (52. Rh7+ {is interesting.} Kg5 53. Ra7 a3 54. b7) 52... Rxb6 {[%emt 0:01:09]} 53. Ra5+ {[%emt 0:00:06]} Kh6 {[%emt 0:00:51]} 54. Rxa4 {[%emt 0:00:04]} Kh5 {[%emt 0:00:27]} 55. Ra5+ {[%emt 0:00:42]} Kh6 {[%emt 0:00:22]} 56. Kf3 {[%emt 0:00:42] Threatening Kg4.} Rb4 {[%emt 0:03:48]} (56... Rg6 $11 {remains equal.}) 57. Rf5 $16 {[%emt 0:00:56] White is clearly better.} Rb2 {[%emt 0:07:08]} 58. Kg4 {[%emt 0:00:46]} Kg6 {[%emt 0:01:35]} 59. Rf4 {[%emt 0:00:48]} Rb5 {[%emt 0:02:25]} 60. Kxh4 {[%emt 0:00:30]} Rd5 {[%emt 0:01:03]} 61. Ra4 {[%emt 0:03:06]} Rd2 {[%emt 0:01:24]} 62. f3 {[%emt 0:04:09][%cal Bf2f3,Bf3f4][%mdl 32]} Kf5 {[%emt 0:01:00]} 63. Kg3 {[%emt 0:00:37]} Rd3 {[%emt 0:01:14]} 64. Ra5+ {[%emt 0:00:18]} Kg6 {[%emt 0:00:10]} 65. Kg4 {[%emt 0:00:15]} Rd4+ {[%emt 0:00:39]} 66. f4 {[%emt 0:00:11]} Rd1 {[%emt 0:00:20]} 67. Ra6+ {[%emt 0:00:13]} Kf7 {[%emt 0:01:25]} 68. h4 {[%emt 0:00:26] Weighted Error Value: White=0.19 (very precise) /Black=0.25 (precise)} 1-0

[Event "Polish Youth G18 Championship 2023"]
[Site "Jastrzebia Gora"]
[Date "2023.03.19"]
[Round "9.4"]
[White "Bukala, Weronika"]
[Black "Zabrzanska, Weronika"]
[Result "1/2-1/2"]
[ECO "C78"]
[WhiteElo "1899"]
[BlackElo "2021"]
[Annotator "TA"]
[PlyCount "80"]
[EventDate "2023.03.11"]
[EventType "swiss"]
[EventCountry "POL"]
[SourceTitle "playchess.com"]
[Source "ChessBase"]
[SourceQuality "1"]
[TimeControl "40/5400+30:1800+30"]

{[%evp 17,80,25,27,-13,0,-16,-25,-170,-176,-212,-235,-578,-363,-459,-347,-349,-200,-189,-132,-120,-129,-135,-129,-209,-206,-197,-118,-483,-504,-524,-522,-1037,-1005,-992,-878,-871,-860,-826,-299,-230,-103,-81,-62,-144,-14,-52,17,0,0,0,0,0,0,0,0,0,0,0,74,0,0,0,0,0,0]} 1. e4 {[%emt 0:01:10]} e5 {[%emt 0:00:02]} 2. Nf3 {[%emt 0:00:09]} Nc6 {[%emt 0:00:08][%cal Bb8c6,Bc6e5,Be5g4][%mdl 32]} 3. Bb5 a6 {[%emt 0:00:09]} 4. Ba4 {[%emt 0:00:16]} Nf6 {[%emt 0:00:08]} 5. O-O {[%emt 0:00:49]} b5 {[%emt 0:00:15]} 6. Bb3 {[%emt 0:00:06]} Bc5 {[%emt 0:00:05]} 7. Nxe5 {[%emt 0:00:49]} Nxe5 {[%emt 0:00:38]} 8. d4 {[%emt 0:00:10]} Bxd4 {[%emt 0:09:45]} 9. Qxd4 {[%emt 0:00:07]} d6 {[%emt 0:00:09] Hoping for ...c5.} 10. a4 {[%emt 0:06:06] C78: Ruy Lopez: Archangelsk and Möller Defences.} Bb7 {[%emt 0:04:25]} 11. f4 {[%emt 0:12:16]} c5 {[%emt 0:01:33][%cal Bc7c5,Bc5c4][%mdl 32]} 12. Qe3 {[%emt 0:02:26]} (12. Qd1 $11 {and White has nothing to worry.} Ng6 13. e5 dxe5 14. fxe5 Nxe5 15. Qxd8+ Kxd8 16. Nc3) 12... Neg4 $19 {[%emt 0:01:16]} 13. Qe2 {[%emt 0:05:27]} c4 {[%emt 0:07:06] [#]} (13... Bxe4 14. Nc3 $18 (14. axb5 c4 $11)) 14. e5 $146 {[%emt 0:12:18]} (14. h3) ({Predecessor:} 14. Ba2 Nxe4 15. Be3 Nxh2 16. Re1 Qh4 17. Nd2 Ng4 18. Nxe4 Bxe4 {0-1 Breum,W-Zuckmann,V FRG-ch M187 corr 1969}) 14... dxe5 {[%emt 0:18:34]} 15. Kh1 {[%emt 0:08:56] White is weak on the light squares} Qb6 {[%emt 0:08:18]} (15... cxb3 $2 16. fxe5 Qe7 17. Nc3 Qxe5 18. h3 $19) 16. Nc3 {[%emt 0:03:56] Repels Ne4} e4 {[%emt 0:05:19]} (16... cxb3 $142 17. fxe5 O-O 18. exf6 Nxf6) 17. Ba2 {[%emt 0:00:49]} Qc5 {[%emt 0:11:08]} (17... h5 $19 {Threatens to win with ...0-0.} 18. h3 Kf8) 18. Nd1 $17 {[%emt 0:06:20]} Rd8 {[%emt 0:05:40][%cal Od8d1]} (18... bxa4 19. Qxc4 (19. h3 Qh5 $11) 19... Qxc4 20. Bxc4 $11) 19. Ne3 {[%emt 0:06:28]} Qh5 $40 {[%emt 0:03:36][%csl Gg4][%cal Rh5h2][%mdl 128] Black has strong attack.} 20. h3 {[%emt 0:03:33] [#]} (20. Nxg4 $17 {was necessary.} Qxg4 21. Qxg4 Nxg4 22. h3) 20... Nxe3 $1 $19 {[%emt 0:03:58]} 21. Qxe3 {[%emt 0:00:11] [#]} Rd1 {[%emt 0:01:50]} (21... bxa4 22. Bxc4 O-O 23. Rxa4 $11) (21... O-O $1 $19 {...Rfe8 would be deadly.} 22. axb5 axb5) 22. Qg1 $2 {[%emt 0:09:43][%mdl 8192]} (22. Bd2 $17 Rxf1+ 23. Rxf1) 22... Rxf1 {[%emt 0:03:04]} 23. Qxf1 {[%emt 0:00:02]} e3 {[%emt 0:00:27][%cal Be4e3,Be3e2][%mdl 32]} (23... bxa4 24. Bxc4 Bc6 25. Bxa6 $11) 24. Kg1 {[%emt 0:01:33]} e2 {[%emt 0:00:32]} (24... bxa4 25. Bxc4 Qc5 26. Qe2 $14) 25. Qf2 {[%emt 0:01:56]} O-O {[%emt 0:01:38]} (25... bxa4 26. Bxc4 O-O 27. Bxe2 $11 (27. Rxa4 $2 Re8 $19)) 26. Be3 {[%emt 0:03:08]} Rd8 {[%emt 0:01:33] ( -> ...Rd1+)} (26... bxa4 27. Bxc4 Re8 28. Bxe2 $11 (28. Rxa4 $2 Bxg2 {[%mdl 64] Decoy} 29. Kxg2 Qg6+ 30. Kh2 Qxc2 $19)) 27. Bd4 Qg6 $2 (27... bxa4 28. Bxc4 Ne4 29. Qe3 $15) (27... Ne4 28. Qe3 Qd5) 28. c3 {[%emt 0:04:40]} Re8 {[%emt 0:03:36]} (28... bxa4 29. Bxc4 Nh5 30. f5 $11 (30. Qxe2 Nxf4 31. Qg4 Qxg4 $15)) (28... Nh5 $19 29. f5 Qg5 30. Qxe2 Nf4) 29. Re1 $17 {[%emt 0:00:53]} Qc2 {[%emt 0:03:42]} (29... bxa4 30. Bxc4 Bc8 31. Kh2 $14 (31. Bxe2 Bxh3 32. Bf1 Ne4 $11)) (29... Nd5 {simplifies} 30. Rxe2 Rxe2 31. Qxe2 h5) 30. Bb1 {[%emt 0:07:49]} ({White should play} 30. axb5 $15 axb5 31. Be5) 30... Qd2 {[%emt 0:00:07]} ({Much weaker is} 30... Qxa4 $6 31. Qg3 Kh8 32. Bxf6 (32. Qh4 Be4 $11) 32... gxf6 33. Qh4 $11) (30... Qxb2 $17 31. axb5 Qxb5) 31. Be5 {[%emt 0:01:47]} Rd8 {[%emt 0:03:19]} ({Reject} 31... bxa4 32. Rxe2 Qd1+ 33. Re1 $11) ({Better is} 31... Qxb2 $15 32. Qd4 b4 33. Qxc4 bxc3 34. Qxc3 Qxc3 35. Bxc3 Be4) 32. Rxe2 {[%emt 0:01:39]} Qc1+ {[%emt 0:00:13]} 33. Re1 {[%emt 0:00:07]} Rd1 {[%emt 0:00:22]} 34. Rxd1 {[%emt 0:00:02]} Qxd1+ {[%emt 0:00:07]} 35. Kh2 {[%emt 0:01:39][%cal Of2a7]} Qxb1 {[%emt 0:02:32]} 36. Qb6 {[%emt 0:00:11][%csl LRb5,LRb7,LRf6] Qd8+ would kill now.} h6 {[%emt 0:01:05]} 37. Qxb7 {[%emt 0:00:03]} bxa4 {[%emt 0:01:16]} (37... Ne4 $11) 38. Qxa6 {[%emt 0:00:16]} (38. Qc8+ $16 Kh7 39. Qxc4 (39. Qxa6 Ne4 $11)) 38... Qxb2 $11 {[%emt 0:00:19] The position is equal.} 39. Qxa4 {[%emt 0:01:22]} Qe2 {[%emt 0:00:11]} 40. Qc6 {[%emt 0:00:00]} Qe4 {[%emt 0:00:00] And White is the lucky defender.   Weighted Error Value: White=0.59/Black=0.59} 1/2-1/2